Cogmind - Beta 16.1 @@@ ROGUE MODE // 2026.02.26 @ 17:38:48 Player: cabin Result: Smashed by cave-in Performance ------------- Evolutions (2) 1000 Regions Visited (5) 1000 Robots Destroyed (30) 150 Value Destroyed (941) 941 Prototype IDs (0) 0 Alien Tech Used (0) 0 Bonus (200) 200 TOTAL SCORE: 3291 Bonus ------- Pacifist 200 Cogmind --------- Core Integrity 0/550 Matter 111/300 Energy 100/100 System Corruption 14% Temperature Cool (0) Movement Core (250) Ox4 Location -8/Storage Parts ------- > --- POWER (1) -------- (None) > --- PROPULSION (4) --- (None) > --- UTILITY (4) ------ Small Storage Unit Medium Storage Unit > --- WEAPON (2) ------- (None) > --- INVENTORY (10) --- (None) Peak State ------------ > --- POWER ------------ Ion Engine > --- PROPULSION ------- Hover Unit Hover Unit Hover Unit Hover Unit > --- UTILITY ---------- Medium Storage Unit Terrain Scanner > --- WEAPON ----------- Heavy Assault Rifle Mini Grenade Launcher > --- INVENTORY -------- Ion Engine Flight Unit Small Storage Unit Signal Interpreter Small Laser Small Laser Grenade Launcher Mining Laser Welding Torch [Rating: 11] Favorites ----------- Power Ion Engine Engine Ion Engine Power Core Light Nuclear Core Propulsion Hover Unit Treads Light Treads Leg Aluminum Leg Hover Unit Hover Unit Flight Unit Flight Unit Utility Medium Storage Unit Device Terrain Scanner Storage Medium Storage Unit Processor Signal Interpreter Weapon Heavy Assault Rifle Energy Gun Small Laser Ballistic Gun Heavy Assault Rifle Launcher Rocket Launcher Special Weapon Mining Laser Build | -11 -10 -9 -9 -8 -8 ------- Run | Yrd Mat Mat Min Mat Sto Slots Evolved 4 | . . 2 . 2 . Power . | . . . . . . Propulsion 2 | . . 2 . . . Utility 2 | . . . . 2 . Weapon . | . . . . . . Parts Attached 30 | 7 3 9 5 5 1 Power 5 | 1 . . 2 2 . Engine 4 | 1 . . 1 2 . Core 1 | . . . 1 . . Reactor . | . . . . . . Propulsion 9 | 2 . 5 2 . . Treads 2 | 2 . . . . . Leg 2 | . . . 2 . . Wheel . | . . . . . . Hover 4 | . . 4 . . . Flight 1 | . . 1 . . . Utility 5 | 1 2 1 . 1 . Device 2 | . 1 . . 1 . Storage 2 | 1 1 . . . . Processor 1 | . . 1 . . . Hackware . | . . . . . . Protection . | . . . . . . Artifact . | . . . . . . Weapon 11 | 3 1 3 1 2 1 Energy Gun 3 | 3 . . . . . Energy Cannon . | . . . . . . Ballistic Gun 1 | . . 1 . . . Ballistic Cannon . | . . . . . . Launcher 5 | . . 2 1 2 . Special Weapon 2 | . 1 . . . 1 Impact Weapon . | . . . . . . Slashing Weapon . | . . . . . . Piercing Weapon . | . . . . . . Special Melee Weapon . | . . . . . . Unidentified Prototypes . | . . . . . . Parts Lost 25 | . . 5 4 12 4 Power 5 | . . 1 . 3 1 Propulsion 7 | . . 3 3 1 . Utility 3 | . . 1 . 1 1 Weapon 10 | . . . 1 7 2 Highest Loss Streak 4 | . . 2 3 4 4 To Critical Strikes . | . . . . . . Average Backups 5 | . 3 8 8 6 . Power . | . . 1 . . . Propulsion . | . 1 . . . . Utility . | . . 1 1 1 . Weapon 3 | . 1 3 5 3 . Tool/Special . | . . . . . . Unused Backups . | . . . . . . Power . | . . . . . . Propulsion . | . . . . . . Utility . | . . . . . . Weapon . | . . . . . . Tool/Special . | . . . . . . Average Slot Usage (%) 71 | . 98 91 78 41 37 Engine 8 | . 14 11 9 1 6 Treads 3 | . 28 . . . . Leg 6 | . . . 18 2 . Hover 8 | . . 30 8 . . Flight 1 | . . 5 . . . Device 2 | . 4 9 . 1 . Storage 13 | . 21 11 11 9 17 Processor 6 | . . 1 11 9 6 Energy Gun 4 | . 22 2 . 5 . Ballistic Gun 4 | . . 7 8 . . Launcher 6 | . . 8 11 8 . Special Weapon 2 | . 5 3 . . 6 Peak Build Rating 11 | 6 8 11 11 10 5 Average Rating 7 | 4 7 9 10 6 4 On Entrance 5 | . 6 8 8 9 3 Avg Prop Armor Cover (%) 3 | . . 3 4 . . Naked Turns . | . . . . . . Heaviest Build 22 | 12 22 20 22 20 19 Greatest Support 40 | 40 40 24 20 10 3 Greatest Overweight (x) 6 | . . 3 3 6 6 Average Overweight (x) . | . . . . 2 5 Largest Inventory Capacity 10 | 8 10 10 10 10 10 Average Capacity 9 | 6 9 10 10 10 10 Most Carried 10 | . 10 10 9 8 2 Average Carried 5 | . 3 7 8 5 . Final Capacity 10 | 8 10 10 10 10 10 Final Carried 10 | . 10 8 9 3 . Class Distribution -------------------- 100% | Mutant Dominant Class ---------------- Mutant | -10/Materials Mutant | -9/Materials Mutant | -9/Mines Mutant | -8/Materials Mutant | -8/Storage Resources | -11 -10 -9 -9 -8 -8 ----------- Run | Yrd Mat Mat Min Mat Sto Matter Collected 656 | 222 . 254 127 53 . Remotely . | . . . . . . Salvage Created 811 | . . 349 127 335 . Parts 42 | . . 19 9 14 . Haulers Intercepted . | . . . . . . Recyclers Shooed 1 | . . 1 . . . Parts Field Recycled . | . . . . . . Retrieved Matter . | . . . . . . Parts Self-Destructed . | . . . . . . Prevented . | . . . . . . Parts Restored . | . . . . . . Kills | -11 -10 -9 -9 -8 -8 ------- Run | Yrd Mat Mat Min Mat Sto Combat Hostiles Destroyed 24 | . . 9 8 7 . Guns 4 | . . 3 1 . . AOE 20 | . . 6 7 7 . Classes Destroyed 7 | . . 4 1 2 . Worker 2 | . . . . 2 . Tunneler 1 | . . 1 . . . Recycler 2 | . . 1 . 1 . Mechanic 1 | . . . . 1 . Swarmer 3 | . . . 3 . . Grunt 18 | . . 7 5 6 . Sentry 3 | . . 2 . 1 . Best Kill Streak 7 | . . 6 3 7 . Combat Bots Only 5 | . . 5 3 3 . Max Kills in Single Turn 3 | . . 3 2 3 . Gunslinging . | . . . . . . Exploded 2 | . . 1 2 2 . Melee . | . . . . . . Uniques/NPCs Destroyed . | . . . . . . Combat | -11 -10 -9 -9 -8 -8 -------- Run | Yrd Mat Mat Min Mat Sto Hostile Shots Fired 144 | . . 50 16 78 . Missed 48 | . . 21 7 20 . Hits 96 | . . 29 9 58 . Projectile 96 | . . 29 9 58 . Critical Strikes 3 | . . 1 . 2 . Damage Taken 2446 | . . 616 284 1147 399 Core 852 | . . 196 87 428 141 Absorbed by Shields . | . . . . . . Core Remaining (%) 76 | 100 100 . 29 . . Volleys Fired 90 | . 2 16 7 28 37 Largest 2 | . 2 2 2 2 1 Hottest 140 | . 140 130 56 73 100 Shots Fired 120 | . 4 32 11 36 37 Gun 47 | . 3 15 4 25 . Cannon . | . . . . . . Launcher 34 | . . 16 7 11 . Special 39 | . 1 1 . . 37 Kinetic 19 | . . 15 4 . . Thermal 67 | . 4 1 . 25 37 Explosive 34 | . . 16 7 11 . Electromagnetic . | . . . . . . Robot Hit Streak 10 | . 1 9 10 10 . Robot Miss Streak 4 | . 1 4 3 2 . Penetration Max . | . . . . . . Secondary Targets . | . . . . . . Shots Hit Robots 48 | . 1 20 4 23 . Core Hits 64 | . . 24 15 25 . Critical Kills . | . . . . . . Critical Parts Destroyed . | . . . . . . Critical Strikes . | . . . . . . Melee Attacks . | . . . . . . Impact . | . . . . . . Slashing . | . . . . . . Piercing . | . . . . . . Sneak Attacks . | . . . . . . Combat Hostiles . | . . . . . . Follow-up Attacks . | . . . . . . Damage Inflicted 2475 | . 10 833 548 1084 . Guns 398 | . 10 191 17 180 . Cannons . | . . . . . . Explosions 2074 | . . 642 528 904 . Melee . | . . . . . . Ramming 3 | . . . 3 . . Kinetic 208 | . . 191 17 . . Thermal 190 | . 10 . . 180 . Explosive 2074 | . . 642 528 904 . Electromagnetic . | . . . . . . Impact . | . . . . . . Slashing . | . . . . . . Piercing . | . . . . . . Highest Corruption 14 | . . . . 2 14 Average Corruption 4 | . . . . 2 5 Corruption Purged . | . . . . . . Corruption Blocked . | . . . . . . Effects 5 | . . . . . 5 Message Errors 1 | . . . . . 1 Heat Flow Errors 1 | . . . . . 1 Energy Discharges 1 | . . . . . 1 Data Loss (minor) 1 | . . . . . 1 Data Loss (major) 1 | . . . . . 1 Overload Shots . | . . . . . . Overflow Damage 98 | . . 21 35 42 . Projectiles . | . . . . . . Explosions 98 | . . 21 35 42 . Melee . | . . . . . . Knockbacks . | . . . . . . Impact . | . . . . . . Kinetic . | . . . . . . Secondary . | . . . . . . Self-Inflicted Damage 609 | . . 210 178 221 . Shots 20 | . . 6 6 8 . Rammed . | . . . . . . Targets Rammed 1 | . . . 1 . . Kicked 1 | . . . 1 . . Crushed . | . . . . . . Highest Temperature 199 | . 40 35 5 35 199 Average Temperature 20 | . 18 9 2 11 106 Received Heat Transfer 714 | . . 156 54 504 . Siege Activations . | . . . . . . Martial Activations . | . . . . . . Shielding Activations . | . . . . . . Robots Disrupted . | . . . . . . Combat Hostiles . | . . . . . . Robots Corrupted . | . . . . . . Combat Hostiles . | . . . . . . Parts Fried . | . . . . . . Impact Corruptions . | . . . . . . Robots Melted . | . . . . . . Combat Hostiles . | . . . . . . Parts Melted . | . . . . . . Heat Transferred 425 | . 25 . . 400 . Parts Sabotaged . | . . . . . . Parts Stolen . | . . . . . . Parts Stripped . | . . . . . . Power Chain Reactions . | . . . . . . Alert | -11 -10 -9 -9 -8 -8 ------- Run | Yrd Mat Mat Min Mat Sto Maximum Alert Level . | . . . . . . Low Security (%) 100 | 100 100 100 100 100 100 Level 1 . | . . . . . . Level 2 . | . . . . . . Level 3 . | . . . . . . Level 4 . | . . . . . . Level 5 . | . . . . . . High Security . | . . . . . . Max Security . | . . . . . . Peak Influence 195 | . 1 195 142 106 37 Initial 61 | . . . 61 28 37 Average 42 | . . 103 54 38 5 Influence Increases 868 | . 1 352 247 265 3 Destroy 0b10 Robot/C 480 | . . 180 160 140 . Destroy 0b10 Robot/NC 30 | . . 10 . 20 . Destroy Leader 90 | . . 40 30 20 . Disable Machine 15 | . . . . 15 . Destroy Structure 208 | . 1 92 57 55 3 Partial Spotted 30 | . . 30 . . . Lose Combat Pursuer 15 | . . . . 15 . Influence Decreases 868 | . 1 195 330 251 91 Entered New Map 193 | . . . 96 46 51 Time Decay 485 | . 1 145 214 85 40 Lost Part 190 | . . 50 20 120 . Squads Dispatched 3 | . . 1 . 1 1 Investigation . | . . . . . . Extermination . | . . . . . . Reinforcement 3 | . . 1 . 1 1 Assault . | . . . . . . Garrison . | . . . . . . Intercept . | . . . . . . Searches Triggered . | . . . . . . Construction Impeded . | . . . . . . Haulers Reinforced . | . . . . . . Active Scanning Responses . | . . . . . . Cargo Convoy Interrupts . | . . . . . . Stealth | -11 -10 -9 -9 -8 -8 --------- Run | Yrd Mat Mat Min Mat Sto Distress Signals 3 | . . 2 . 1 . Communications Jammed . | . . . . . . Distress Signals . | . . . . . . Times Spotted 37 | . 2 16 8 11 . Peak Tracking Total 6 | . 2 6 3 4 1 Tactical Retreats 1 | . . . . 1 . Traps | -11 -10 -9 -9 -8 -8 ------- Run | Yrd Mat Mat Min Mat Sto Traps Triggered . | . . . . . . Indirectly . | . . . . . . Trap Hack Attempts . | . . . . . . Triggered . | . . . . . . Disarmed . | . . . . . . Reprogrammed . | . . . . . . Reused . | . . . . . . Traps Extracted . | . . . . . . Installed . | . . . . . . Triggered . | . . . . . . Machines | -11 -10 -9 -9 -8 -8 ---------- Run | Yrd Mat Mat Min Mat Sto Machines Disabled 1 | . . . . 1 . Max in Single Turn 1 | . . . . 1 . Machines Repaired . | . . . . . . Machines Dismantled . | . . . . . . Machines Sabotaged . | . . . . . . Overloaded Fab Kills . | . . . . . . Hacking | -11 -10 -9 -9 -8 -8 --------- Run | Yrd Mat Mat Min Mat Sto Machines Accessed 2 | . 2 . . . . Terminals 1 | . 1 . . . . Fabricators . | . . . . . . Repair Stations . | . . . . . . Recycling Units 1 | . 1 . . . . Scanalyzers . | . . . . . . Garrison Access . | . . . . . . Total Hacks 5 | . 5 . . . . Successful 4 | . 4 . . . . Failed 1 | . 1 . . . . Catastrophic . | . . . . . . Database Lockouts . | . . . . . . Manual . | . . . . . . Terminals 2 | . 2 . . . . Fabricators . | . . . . . . Repair Stations . | . . . . . . Recycling Units 3 | . 3 . . . . Scanalyzers . | . . . . . . Garrison Access . | . . . . . . Terminal Hacks 1 | . 1 . . . . Zone Layout 1 | . 1 . . . . Fabricator Hacks . | . . . . . . Repair Station Hacks . | . . . . . . Recycling Unit Hacks 3 | . 3 . . . . Report Inventory 1 | . 1 . . . . Retrieve Matter 1 | . 1 . . . . Retrieve Components 1 | . 1 . . . . Scanalyzer . | . . . . . . Garrison Access Hacks . | . . . . . . Unauthorized Hacks . | . . . . . . Terminals . | . . . . . . Fabricators . | . . . . . . Repair Stations . | . . . . . . Recycling Units . | . . . . . . Scanalyzers . | . . . . . . Garrison Access . | . . . . . . Data Cores Recovered . | . . . . . . Used . | . . . . . . Hacking Detections . | . . . . . . Full Trace Events . | . . . . . . Feedback Events . | . . . . . . Feedback Blocked . | . . . . . . Robot Schematics Acquired . | . . . . . . Robots Built . | . . . . . . Authchips . | . . . . . . Time . | . . . . . . Total Robot Build Rating . | . . . . . . Part Schematics Acquired . | . . . . . . Parts Built . | . . . . . . Authchips . | . . . . . . Time . | . . . . . . Total Part Build Rating . | . . . . . . Part Studies Acquired . | . . . . . . Parts Repaired . | . . . . . . Time . | . . . . . . Parts Recycled . | . . . . . . Recycled Matter . | . . . . . . Retrieved Matter . | . . . . . . Retrieved Components 1 | . 1 . . . . Parts Scanalyzed . | . . . . . . Part Schematics Acquired . | . . . . . . Parts Damaged . | . . . . . . Bothacking | -11 -10 -9 -9 -8 -8 ------------ Run | Yrd Mat Mat Min Mat Sto Used RIF Installer . | . . . . . . Robots Hacked . | . . . . . . Non-combat . | . . . . . . Combat . | . . . . . . Robot Hacks Applied . | . . . . . . Relay Couplers Released . | . . . . . . Fabnet Peak Effective % . | . . . . . . Robots Rewired . | . . . . . . Allies Hacked . | . . . . . . Hacks Repelled . | . . . . . . Allies | -11 -10 -9 -9 -8 -8 -------- Run | Yrd Mat Mat Min Mat Sto Total Allies . | . . . . . . Largest Group . | . . . . . . Highest-Rated Group . | . . . . . . Highest-Rated Ally . | . . . . . . Total Orders . | . . . . . . Ally Attacks . | . . . . . . Total Damage . | . . . . . . Kills . | . . . . . . Allies Corrupted . | . . . . . . Allies Melted . | . . . . . . Intel | -11 -10 -9 -9 -8 -8 ------- Run | Yrd Mat Mat Min Mat Sto Active Infowar (turns) 358 | . 78 280 . . . Terrain 358 | . 78 280 . . . Robot Analysis Total . | . . . . . . Derelict Logs Recovered 2 | . . . 2 . . Drone Launches . | . . . . . . Drone Recoveries . | . . . . . . Exploration | -11 -10 -9 -9 -8 -8 ------------- Run | Yrd Mat Mat Min Mat Sto Turns Passed 1905 | 93 239 340 665 217 351 Spaces Moved 850 | 57 136 348 214 62 33 Core 82 | 9 . . . 40 33 Treads 184 | 48 136 . . . . Legs 234 | . . . 212 22 . Wheels . | . . . . . . Hover 350 | . . 348 2 . . Flight . | . . . . . . Fastest Speed 48 | 50 160 48 120 190 250 Average Speed 143 | 142 160 77 185 228 343 Slowest Speed 350 | 160 160 240 240 350 350 Overloaded Moves . | . . . . . . Propulsion Burnouts . | . . . . . . Robots Hopped . | . . . . . . Potential Cave-ins 19 | . . . . . 19 Cave-ins Triggered 7 | . . . . 1 6 Exploration Rate (%) 21 | 3 25 30 57 9 4 Regions Visited 5 Branch Regions 2 Pre-discovered Areas 1 | . . . 1 . . Known Exits Taken 3 | . . 1 1 1 . Unknown Exits Taken 2 | 1 1 . . . . Scrap Searched . | . . . . . . Spaces Dug 32 | . 1 . . . 31 Terrain Destroyed 297 | . 1 124 67 74 31 Melee . | . . . . . . Projectile 32 | . 1 . . . 31 AOE 265 | . . 124 67 74 . Terrain Rammed . | . . . . . . Walls Destroyed . | . . . . . . Machines Disabled . | . . . . . . Actions | -11 -10 -9 -9 -8 -8 --------- Run | Yrd Mat Mat Min Mat Sto Total 1334 | 65 151 384 468 99 167 Wait 345 | 2 . 7 242 . 94 Move 844 | 56 135 347 213 61 32 Hop . | . . . . . . Pick Up 11 | . 10 1 . . . Fast Attach 15 | 6 1 2 2 4 . Attach 17 | . 1 6 1 6 3 Detach 3 | . 1 2 . . . Swap 5 | 1 1 1 2 . . Drop 2 | . . 2 . . . Fire 90 | . 2 16 7 28 37 Melee . | . . . . . . Ram . | . . . . . . Kick 1 | . . . 1 . . Crush . | . . . . . . Escape Stasis 1 | . . . . . 1 Rewire . | . . . . . . Trap . | . . . . . . Miscellaneous . | . . . . . . Route ------- -11/Scrapyard -10/Materials -9/Materials -9/Mines -8/Materials -8/Storage History --------- Turn | Location | Event 17 | -11/Scrapyard | Discovered new exit (range 15) 94 | -11/Scrapyard | Entered Materials 314 | -10/Materials | Build established: Mutant 320 | -10/Materials | Discovered new exit (range 8) 333 | -10/Materials | Entered another Materials area 333 | -9/Materials | Evolved 2 slots: Propulsion x2 661 | -9/Materials | Discovered new exit (range 6) 670 | -9/Materials | Identified exit to Mines 673 | -9/Materials | Entered Mines 675 | -9/Mines | Core integrity fell below 50% 713 | -9/Mines | Received a Rocket Launcher from a helpful Derelict 751 | -9/Mines | Learned Materials garrison access intel 1198 | -9/Mines | Lost 3 parts (2n1w) 1317 | -9/Mines | Discovered new exit (range 12) 1336 | -9/Mines | Identified exit to Materials 1338 | -9/Mines | Entered Materials 1338 | -8/Materials | Evolved 2 slots: Utility x2 1339 | -8/Materials | Loaded intel: 1 garrison access location 1437 | -8/Materials | Lost 4 parts (1p1n2w) 1489 | -8/Materials | Crushed by falling debris 1511 | -8/Materials | Discovered new exit (range 11) 1520 | -8/Materials | Lost 4 parts (1p3w) 1530 | -8/Materials | Core integrity fell below 50% 1552 | -8/Materials | Identified exit to Storage 1555 | -8/Materials | Entered Storage 1580 | -8/Storage | Lost 4 parts (1p1u2w) 1794 | -8/Storage | Crushed by falling debris 1807 | -8/Storage | Crushed by falling debris 1807 | -8/Storage | Crushed by falling debris 1807 | -8/Storage | Core integrity fell below 20% 1807 | -8/Storage | System corruption reached 10% 1818 | -8/Storage | Crushed by falling debris 1849 | -8/Storage | Lost 4 parts (1p1u2w) 1902 | -8/Storage | Crushed by falling debris 1907 | -8/Storage | Crushed by falling debris 1907 | -8/Storage | Smashed by cave-in Last Messages --------------- 01794_ System corrupted by crushing effect (+3). 01806_ The unstable cave ceiling collapses. 01807_ Crushed by falling debris. 01807_ Welding Torch destroyed. 01807_ System corrupted by crushing effect (+4). 01807_ The unstable cave ceiling collapses. 01807_ Crushed by falling debris. 01816_ System corrupted: Energy discharge (-20). 01818_ The unstable cave ceiling collapses. 01818_ Crushed by falling debris. 01818_ Signal Interpreter destroyed. 01818_ System corrupted by crushing effect (+3). 01850_ System corrupted: Heat flow error (+230). 01871_ The unstable cave ceiling collapses. 01892_ System corrupted: Substantial component data lost. 01902_ The unstable cave ceiling collapses. 01902_ Crushed by falling debris. 01907_ The unstable cave ceiling collapses. 01907_ Crushed by falling debris. Map ----- +----------------------------------------------------+ | ??????????????????????????? | | ??????????????????????????? | | ??????????????????????????? | | ??????????????????????????? | | ??????????????????????????? | | ??????????????????????????? | | ??????????????????????????? | | ??????????????????????????? | | ??????????????????????????? | | ??????????????????????????? | | ??????????????????????????? | | ??????????????????????????? | | ??????????????????????????? | | ??????????????????????????? | | ??????????????????????????? | | ??????????????????????????? | | ??????????????????????????? | | ??????????????????????????? | | ??????????????????????????? | | ??????????????????????????? | | ??????????????????????????? | | ###???????????????????????? | | ###???????????????????????? | | # ###?????????????????????? | | #####?????????????????????? | | ##@##?????????????????????? | | ####??????????????????????? | | # ##??????????????????????? | | # #??????????????????????? | | # ##??????????????????????? | | ###?##? ????????????????? | | # ## #? #???????????????? | | # # #?? #???????????????? | | ##??? #???????????????? | | ## #?? #???????????????? | | # ## #? #???????????????? | | ##?### #???????????????? | | ###??# #???????????????? | | ####### #???????????????? | | # # #???????????????? | | # # #???????????????? | | # # #???????????????? | | # # #???????????????? | | #""" # #???????????????? | | #""" + #???????????????? | | #""" # #???????????????? | | # # #???????????????? | | #""" # #???????????????? | | #""" # #???????????????? | | #""" # #???????????????? | +----------------------------------------------------+ Best States ------------- Heat Dissipation 50 Energy Generation 14 Energy Capacity 250 Matter Stores 300 Matter Capacity 300 Sight Range 16 Terrain Scan Range 14 Terrain Scan Density 10 Evasion (%) 55 Recoil Reduction 2 Item Schematics ----------------- None Robot Schematics ------------------ None Fabricated ------------ Nothing Repaired ---------- Nothing Studied --------- None Alien Tech Used ----------------- None Achievements -------------- Ghost 'Em Heavy Suspicion Resistances Are Futile Challenges ------------ None Game ------ Seed SapperBackupBoomstick Manual? 0 Play Time 00:18:59 Cumulative 20.2 hours Start 2026.02.26 @ 17:20:20 End 2026.02.26 @ 17:38:48 Sessions 1 Manual Loads 0 Difficulty Rogue Special Mode None Game No. 57 Rogue 56 Adventurer 1 Explorer 0 Win Type - Total 0 Types 0/0/0/0/0/0/0/0/0/0 Lore% 7 Gallery% 23 Achievement% 12 Wizard Run 0 Options --------- Layout 2 ASCII 0 Keyboard 1 Movement Numpad Keybinds 0 Fullscreen 1 Font 24/Smallcaps Map View 50x44 Zoom Use 0% Tactical HUD 1 Map Filters NONE Filters NONE Steam 1 RUN: 790f9189-3ca2-4758-8a1e-0514373b153c